bitfinex-derivatives/quotes_SOLF0:USTF0_20250329
["timestamp","ask_amount","ask_price","bid_price","bid_amount"]
[1743272057643,11.083397,125.0,124.96,0.05113265]
[1743272057852,87.34698103,125.01,124.98,15.54422193]
[1743272058046,87.34698103,125.01,124.99,33.56]
[1743272058753,87.34698103,125.01,125.0,8.003]
[1743272058952,87.39938895,125.01,125.0,8.003]
[1743272060052,0.05240792,125.01,125.0,8.003]
[1743272060654,168.03532554,125.08,125.04,8.0001]
[1743272060855,168.03532554,125.08,125.03,33.56]
[1743272061061,168.03532554,125.08,125.0,33.56]
[1743272061256,168.03532554,125.08,125.01,8.0021]
[1743272061559,8.0011,125.03,125.0,33.56]
[1743272061758,15.54422193,125.07,125.0,33.56]
[1743272061961,0.05583095,125.03,125.0,33.61911222]
[1743272062259,0.05583095,125.03,125.0,41.62171222]
[1743272062459,0.05583095,125.03,125.0,33.61911222]
[1743272062656,8.0021,125.02,125.0,33.61911222]
[1743272063155,8.05713095,125.03,125.0,41.62171222]
[1743272065056,0.05583095,125.03,125.0,49.16333415]
[1743272065259,0.05583095,125.03,125.01,2.0485]
[1743272065456,0.05583095,125.03,125.02,8.0017]
[1743272065653,87.34698103,125.06,125.02,15.54422193]
[1743272065857,87.34698103,125.06,125.03,33.54]
[1743272066055,87.34698103,125.06,125.04,15.54422193]
[1743272066459,131.58195995,125.07,125.04,15.54422193]
[1743272066766,131.64063749,125.07,125.04,15.59630675]
[1743272067756,7.754e-05,125.07,125.04,15.59630675]
[1743272067958,131.58195995,125.09,125.06,15.54422193]
[1743272068168,131.58195995,125.09,125.07,33.54]
[1743272068359,131.58195995,125.09,125.08,7.9979]
[1743272068660,207.86370174,125.1,125.08,15.54422193]
[1743272068963,84.43563794,125.1,125.09,7.9972]
[1743272069263,78.08828216,125.1,125.09,7.9972]
[1743272070967,0.05974422,125.1,125.09,7.9972]
[1743272072165,0.05974422,125.1,125.08,8.0559331]
[1743272072961,0.05974422,125.1,125.09,7.9972]
[1743272075263,0.05974422,125.1,125.08,8.0563331]
[1743272076761,0.05974422,125.1,125.08,0.0585331]
[1743272078874,7.9972,125.09,125.08,0.0585331]
[1743272079173,0.05974422,125.1,125.08,0.0585331]
[1743272079374,8.05664422,125.1,125.08,0.0585331]
[1743272080573,7.9972,125.09,125.08,0.0585331]
[1743272082274,8.05664422,125.1,125.08,0.0585331]
[1743272082978,0.05974422,125.1,125.08,0.0585331]
[1743272083677,0.05974422,125.1,125.09,7.9972]
[1743272083976,0.05974422,125.1,125.08,0.0585331]
[1743272084179,0.05974422,125.1,125.09,7.9972]
[1743272090981,0.05974422,125.1,125.04,33.46]
[1743272091373,7.9975,125.09,125.06,7.999]
[1743272091580,0.05974422,125.1,125.04,33.46]
[1743272092285,0.05974422,125.1,125.06,0.05411483]
[1743272092676,7.9977,125.09,125.06,8.05321483]
[1743272095682,7.9979,125.08,125.06,8.05321483]
[1743272096385,7.9985,125.07,125.06,0.05411483]
[1743272097483,17.69682193,125.09,124.99,2.0929]
[1743272097683,17.69682193,125.09,125.0,34.84994602]
[1743272097889,17.69682193,125.09,125.01,33.46]
[1743272098089,15.54422193,125.07,125.0,33.46]
[1743272098290,2.1797,125.06,125.0,33.46]
[1743272098689,8.0014,125.03,125.02,0.06011195]
[1743272098990,0.05167396,125.04,124.98,33.46]
[1743272099187,8.0017,125.02,124.98,33.46]
[1743272099585,15.54422193,125.05,124.98,33.46]
[1743272099787,8.0016,125.03,125.0,8.003]
[1743272100092,8.05688248,125.03,125.0,8.05680576]
[1743272100389,8.0018,125.02,125.0,0.05380576]
[1743272100583,0.05528248,125.03,125.0,0.05380576]
[1743272100784,15.59950441,125.03,125.0,0.05380576]
[1743272100989,8.0043,124.98,124.95,74.39699826]
[1743272101190,15.54422193,125.03,124.95,66.39099826]
[1743272101491,8.003,125.0,124.97,8.0045]
[1743272101790,15.54422193,125.03,124.95,66.39099826]
[1743272101991,17.72392193,125.06,124.98,33.44]
[1743272102190,0.05987014,125.0,124.98,33.44]
[1743272102390,17.72392193,125.06,124.98,33.44]
[1743272102595,0.05840765,125.0,124.98,33.49141443]
[1743272102890,0.05580932,125.03,124.98,33.49804212]
[1743272103089,7.019e-05,125.0,124.98,33.44]
[1743272103293,2.1797,125.06,125.05,7.9998]
[1743272103799,7.9982,125.08,125.05,7.9998]
[1743272104386,8.05010135,125.08,125.05,0.05181182]
[1743272104992,0.05190135,125.08,125.05,0.05181182]
[1743272106196,8.05010135,125.08,125.05,8.05131182]
[1743272107096,0.05190135,125.08,125.05,33.49181182]
[1743272107797,1.35e-06,125.08,125.07,7.9985]
[1743272109696,1.35e-06,125.08,125.06,7.9989]
[1743272111194,1.35e-06,125.08,125.05,33.49181182]
[1743272111499,1.35e-06,125.08,125.05,0.05181182]
[1743272112193,7.99820135,125.08,125.05,0.05181182]
[1743272112397,1.35e-06,125.08,125.05,0.05181182]
[1743272113291,1.35e-06,125.08,125.05,8.05121182]
[1743272113497,1.35e-06,125.08,125.05,0.05181182]
[1743272113696,7.9985,125.07,125.05,0.05181182]
[1743272114293,7.9992,125.06,125.05,0.05181182]
[1743272114492,1.35e-06,125.08,125.05,0.05181182]
[1743272115196,7.9989,125.07,125.05,0.05181182]
[1743272115496,1.35e-06,125.08,125.05,0.05181182]
[1743272115690,1.35e-06,125.08,125.05,33.47181182]
[1743272116694,1.35e-06,125.08,125.07,7.9985]
[1743272116900,1.35e-06,125.08,125.05,33.47181182]
[1743272117901,1.35e-06,125.08,125.07,7.9985]
[1743272119594,1.35e-06,125.08,125.05,0.05181182]
[1743272119793,1.35e-06,125.08,125.05,33.45181182]
[1743272120105,7.99840135,125.08,125.05,41.45131182]
[1743272120302,1.35e-06,125.08,125.05,41.45131182]
[1743272120705,7.9992,125.06,125.05,0.05181182]
[1743272121099,1.35e-06,125.08,125.05,0.05181182]
[1743272121807,1.35e-06,125.08,125.06,7.9986]
[1743272122605,7.99790135,125.08,125.05,8.05131182]
[1743272122807,7.99790135,125.08,125.05,0.05181182]
[1743272123002,1.35e-06,125.08,125.05,0.05181182]
[1743272124399,7.9992,125.06,125.05,0.05181182]
[1743272125008,8.0001,125.05,125.02,8.0015]
[1743272125305,48.94422193,125.1,125.01,33.4]
[1743272125506,5.08332098,125.09,125.01,33.4]
[1743272125708,7.999,125.07,125.04,8.0004]
[1743272126008,0.05169373,125.07,125.04,33.45450356]
[1743272127707,0.05169373,125.07,125.04,41.45490356]
[1743272128207,8.05069373,125.07,125.04,41.45490356]
[1743272128604,8.05069373,125.07,125.05,7.9997]
[1743272129006,8.05069373,125.07,125.04,33.45450356]
[1743272129206,0.05169373,125.07,125.04,33.45450356]
[1743272129607,7.9998,125.05,125.04,0.05450356]
[1743272131609,0.05169373,125.07,125.01,33.38]
[1743272131817,22.67497944,125.06,125.01,33.38]
[1743272132015,17.59582193,125.06,125.01,33.38]
[1743272132919,0.05198949,125.05,125.02,0.05065306]
[1743272133516,8.0011,125.03,125.02,0.05065306]
[1743272133823,15.54422193,125.02,124.96,33.38]
[1743272134028,15.54422193,125.0,124.94,140.01432011]
[1743272134221,7.18088348,124.99,124.94,140.01432011]
[1743272134415,2.1083,124.99,124.94,140.01432011]
[1743272134622,20.6087039,124.98,124.94,140.01432011]
[1743272134820,8.0062,124.95,124.94,140.01432011]
[1743272135619,8.0062,124.95,124.94,136.71882011]
[1743272135922,15.54422193,124.96,124.93,160.61337821]
[1743272136418,8.0068,124.94,124.93,160.61337821]
[1743272136618,8.0068,124.94,124.87,33.24154912]
[1743272136619,15.54422193,124.94,124.87,33.24154912]
[1743272137823,8.0097,124.9,124.89,0.05359061]
[1743272138829,8.009,124.91,124.89,0.05359061]
[1743272139122,48.9824168,124.92,124.89,0.05359061]
[1743272139323,33.43819487,124.92,124.89,0.05359061]
[1743272140022,0.05819487,124.92,124.9,8.0089]
[1743272140621,0.05819487,124.92,124.91,8.0088]
[1743272141625,0.05819487,124.92,124.89,0.05359061]
[1743272142120,0.05819487,124.92,124.91,8.0088]
[1743272142526,263.86,124.97,124.95,8.0058]
[1743272142827,297.36,125.03,124.94,33.38]
[1743272143025,263.98,125.03,124.94,33.38]
[1743272143328,33.38,125.06,124.95,26.30771338]
[1743272143522,8.0004,125.04,124.96,1.39474879]
[1743272143728,8.0004,125.04,125.0,8.0026]
[1743272143930,0.05887167,125.02,125.0,8.0026]
[1743272144322,0.05887167,125.02,124.99,0.05068804]
[1743272144730,0.05887167,125.02,124.99,8.05388804]
[1743272145331,0.05887167,125.02,124.99,0.05068804]
[1743272145533,8.0025,125.01,124.99,0.05068804]
[1743272145730,33.38,125.0,124.93,33.38]
[1743272145927,33.38,125.0,124.91,8.0084]
[1743272146123,33.38,125.0,124.9,35.3718]
[1743272146330,33.38,125.0,124.91,1.39524815]
[1743272146929,0.05047815,124.97,124.94,0.05479083]
[1743272148133,0.05047815,124.97,124.94,8.06139083]
[1743272148937,8.05557815,124.97,124.94,0.05479083]
[1743272150133,8.05557815,124.97,124.94,8.06149083]
[1743272150431,8.0056,124.96,124.94,0.05479083]
[1743272150834,0.05047815,124.97,124.94,0.05479083]
[1743272151236,0.05047815,124.97,124.95,8.0057]
[1743272151839,0.05047815,124.97,124.96,8.0056]
[1743272152139,0.05047815,124.97,124.94,0.05479083]
[1743272153140,8.006,124.96,124.94,0.05479083]
[1743272153333,0.05047815,124.97,124.94,8.06149083]
[1743272153741,8.05567815,124.97,124.94,8.06149083]
[1743272154040,0.05047815,124.97,124.94,0.05479083]
[1743272155341,8.05567815,124.97,124.94,8.06159083]
[1743272156044,0.05047815,124.97,124.95,8.0061]
[1743272156239,0.05047815,124.97,124.94,0.05479083]
[1743272156436,0.05047815,124.97,124.94,1.44972311]
[1743272156639,8.0014,125.03,124.95,2.0545]
[1743272156948,33.36,125.05,124.96,33.36]
[1743272157638,0.06052327,125.02,124.99,0.0611527]
[1743272157946,0.06052327,125.02,125.0,8.003]
[1743272158241,0.06052327,125.02,124.99,0.0611527]
[1743272158441,0.06052327,125.02,125.01,8.0023]
[1743272159242,0.06052327,125.02,124.99,0.0611527]
[1743272159847,0.06052327,125.02,125.0,8.0026]
[1743272160847,8.06232327,125.02,124.99,8.0644527]
[1743272161141,0.06052327,125.02,124.99,0.0611527]
[1743272161338,8.003,125.0,124.99,0.0611527]
[1743272162442,8.0027,125.01,124.99,0.0611527]
[1743272162742,33.40052327,125.02,124.99,0.0611527]
[1743272163134,8.003,125.0,124.99,0.0611527]
[1743272164448,8.0025,125.01,124.99,0.0611527]
[1743272165342,8.003,125.0,124.99,0.0611527]
[1743272168944,56.88511367,125.0,124.86,15.56511367]
[1743272169147,15.56511367,124.96,124.87,34.71532407]
[1743272169443,15.56511367,124.96,124.88,1.39532407]
[1743272169852,17.73031367,124.96,124.88,1.39532407]
[1743272170048,0.06021574,124.93,124.91,0.05958143]
[1743272170349,8.0084,124.92,124.91,0.05958143]
[1743272171751,0.06021574,124.93,124.91,0.05958143]
[1743272172252,8.0081,124.92,124.91,0.05958143]
[1743272174061,8.06791574,124.93,124.91,0.05958143]
[1743272174558,0.06021574,124.93,124.91,8.06798143]
[1743272174855,297.24,125.0,124.91,0.05958143]
[1743272175051,8.0025,125.01,124.98,8.0038]
[1743272175246,2.0827,125.02,124.96,33.32]
[1743272175855,8.0045,124.98,124.96,33.32]
[1743272176354,8.0037,124.99,124.97,8.0046]
[1743272176656,0.05903925,125.0,124.96,33.37729235]
[1743272176857,8.0049,124.97,124.96,0.05729235]
[1743272177159,58.23935046,124.98,124.89,33.32]
[1743272177353,4.0702,124.97,124.89,33.32]
[1743272177558,8.0083,124.92,124.89,33.32]
[1743272177858,4.0702,124.97,124.89,33.32]
[1743272178064,8.0074,124.94,124.9,8.0091]
[1743272178259,8.06405985,124.94,124.92,0.05219409]
[1743272178860,8.0075,124.93,124.92,0.05219409]
[1743272182464,8.0075,124.93,124.92,9.409e-05]
[1743272182664,0.05665985,124.94,124.86,4.1852]
[1743272182859,24.91935046,124.93,124.8,24.91935046]
[1743272183066,8.0126,124.85,124.81,5.71765709]
[1743272183367,8.0126,124.85,124.82,8.0142]
[1743272183866,8.07037717,124.85,124.82,8.06574566]
[1743272184254,0.05777717,124.85,124.82,0.05154566]
[1743272184666,0.05777717,124.85,124.82,8.06574566]
[1743272184958,0.05777717,124.85,124.82,0.05154566]
[1743272185162,0.05777717,124.85,124.82,33.37154566]
[1743272185363,0.05777717,124.85,124.83,8.0135]
[1743272186063,0.05777717,124.85,124.82,33.37154566]
[1743272186563,0.05777717,124.85,124.82,8.06584566]
[1743272186860,0.05777717,124.85,124.82,0.05154566]
[1743272187265,0.05777717,124.85,124.82,8.06574566]
[1743272187463,0.05777717,124.85,124.82,0.05154566]
[1743272187764,8.07037717,124.85,124.82,8.06584566]
[1743272188268,8.0139,124.83,124.82,0.05154566]
[1743272188462,2.0778,124.84,124.78,8.0168]
[1743272188657,4.2266,124.84,124.76,35.3338]
[1743272188861,8.0142,124.83,124.79,8.0158]
[1743272189063,4.2266,124.84,124.79,8.0158]
[1743272189365,8.015,124.82,124.79,8.0165]
[1743272189563,0.05588558,124.83,124.8,0.05323375]
[1743272189863,4.2266,124.84,124.8,8.06863375]
[1743272190059,0.05891964,124.83,124.8,0.05323375]
[1743272191064,8.07321964,124.83,124.8,0.05323375]
[1743272191264,0.05891964,124.83,124.8,0.05323375]
[1743272192466,8.0151,124.82,124.8,0.05323375]
[1743272193065,8.0152,124.81,124.8,0.05323375]
[1743272193869,0.05891964,124.83,124.8,0.05323375]
[1743272194065,0.05891964,124.83,124.82,8.0145]
[1743272197271,0.05891964,124.83,124.81,8.0149]
[1743272197961,0.05891964,124.83,124.81,8.0152]
[1743272198161,0.05891964,124.83,124.8,33.37323375]
[1743272198472,0.05891964,124.83,124.82,8.0145]
[1743272199569,264.1,124.9,124.82,8.02]
[1743272199774,264.1,124.9,124.83,33.3]
[1743272199968,8.0091,124.91,124.88,8.0102]
[1743272200169,37.4179,124.94,124.86,33.3]
[1743272200369,24.94403887,124.93,124.86,33.3]
[1743272200568,0.05630551,124.91,124.89,0.05339662]
[1743272201268,8.01,124.9,124.89,0.05339662]
[1743272205378,0.05630551,124.91,124.89,0.05339662]
[1743272205379,8.06530551,124.91,124.89,0.05339662]
[1743272206376,0.05630551,124.91,124.89,8.06339662]
[1743272206979,8.06510551,124.91,124.89,8.06339662]
[1743272207583,0.05630551,124.91,124.9,8.0094]
[1743272207974,8.06520551,124.91,124.89,0.05339662]
[1743272208679,24.94403887,124.9,124.82,2.0452]
[1743272208878,24.94403887,124.9,124.8,33.28]
[1743272209078,8.0133,124.84,124.8,33.28]
[1743272209280,33.28,124.88,124.8,33.28]
[1743272209680,24.94403887,124.87,124.77,4.265]
[1743272209980,0.0515866,124.85,124.77,37.545]
[1743272210182,33.3315866,124.85,124.77,37.545]
[1743272210382,8.0155,124.81,124.78,8.0168]
[1743272211184,0.05950859,124.81,124.78,0.0526913]
[1743272212892,0.05950859,124.81,124.78,8.0697913]
[1743272213396,8.0158,124.8,124.78,0.0526913]
[1743272214388,8.07500859,124.81,124.78,8.0696913]
[1743272214790,0.05950859,124.81,124.78,0.0526913]
[1743272215092,8.016,124.8,124.78,0.0526913]
[1743272215689,8.0165,124.79,124.78,0.0526913]
[1743272215987,0.05950859,124.81,124.78,0.0526913]
[1743272216394,8.07500859,124.81,124.78,8.0695913]
[1743272216794,0.05950859,124.81,124.78,0.0526913]
[1743272217894,8.0165,124.79,124.78,0.0526913]
[1743272218798,26.98314746,124.81,124.73,8.0201]
[1743272218992,15.61347516,124.79,124.74,8.0195]
[1743272219193,48.89347516,124.79,124.74,8.0195]
[1743272219392,8.0182,124.77,124.74,8.0195]
[1743272220097,8.07491647,124.77,124.74,8.07995709]
[1743272220292,8.07491647,124.77,124.74,0.06045709]
[1743272221596,0.05671647,124.77,124.74,0.06045709]
[1743272221898,15.61347516,124.83,124.75,33.28]
[1743272222092,17.71157516,124.83,124.77,8.0173]
[1743272222291,17.71157516,124.83,124.75,33.28]
[1743272222487,17.71157516,124.83,124.78,8.0167]
[1743272222900,8.0158,124.8,124.79,0.05855448]
[1743272223197,0.05845163,124.82,124.79,0.05855448]
[1743272223601,0.05845163,124.82,124.8,8.0154]
[1743272223800,0.05845163,124.82,124.79,0.05855448]
[1743272225796,8.0156,124.81,124.79,0.05855448]
[1743272225995,0.05845163,124.82,124.79,0.05855448]
[1743272227295,8.0158,124.8,124.79,0.05855448]
[1743272227594,0.05845163,124.82,124.79,0.05855448]
[1743272227800,8.07335163,124.82,124.79,8.07465448]
[1743272228001,0.05845163,124.82,124.79,0.05855448]
[1743272228396,8.0158,124.8,124.79,0.05855448]
[1743272229496,8.0173,124.78,124.75,41.2788]
[1743272229692,2.1565,124.81,124.75,33.26]
[1743272230304,2.1565,124.81,124.75,41.2786]
[1743272230596,2.1565,124.81,124.77,0.05410869]
[1743272230597,0.05541158,124.79,124.77,0.05410869]
[1743272231202,0.05541158,124.79,124.78,33.26]
[1743272231403,8.0141,124.83,124.78,33.26]
[1743272231801,8.0141,124.83,124.8,8.0155]
[1743272232700,8.06859499,124.83,124.8,8.07650038]
[1743272235108,8.0147,124.82,124.8,0.06100038]
[1743272235405,33.24,124.81,124.65,41.00724443]
[1743272235601,27.12594443,124.8,124.7,2.0477]
[1743272235801,27.12594443,124.8,124.71,1.39752225]
[1743272236002,2.0797,124.81,124.72,33.24]
[1743272236202,8.0174,124.78,124.73,1.39752225]
[1743272236407,8.0174,124.78,124.72,33.24]
[1743272236609,0.05188206,124.77,124.74,0.05277868]
[1743272236803,0.05188206,124.77,124.75,41.2585]
[1743272237508,0.05188206,124.77,124.76,8.0184]
[1743272238110,0.05188206,124.77,124.75,41.2587]
[1743272238311,0.05188206,124.77,124.75,33.24]
[1743272238612,0.05188206,124.77,124.75,41.2586]
[1743272238911,0.05188206,124.77,124.75,33.24]
[1743272239109,264.18,124.88,124.75,41.26]
[1743272239311,5.0173048,124.87,124.76,3.43473581]
[1743272239513,8.0117,124.87,124.77,1.39713581]
[1743272239811,264.18,124.88,124.78,33.24]
[1743272240012,8.0133,124.84,124.78,33.24]
[1743272240310,8.07260904,124.84,124.82,0.05233597]
[1743272240511,0.05930904,124.84,124.82,0.05233597]
[1743272240712,0.05930904,124.84,124.83,8.0139]
[1743272240913,0.05930904,124.84,124.82,0.05233597]
[1743272241106,8.07290904,124.84,124.82,0.05233597]
[1743272241812,0.05930904,124.84,124.82,0.05233597]
[1743272244112,8.07290904,124.84,124.82,0.05233597]
[1743272244706,0.05930904,124.84,124.82,0.05233597]
[1743272245417,0.05930904,124.84,124.83,8.0139]
[1743272245815,0.05930904,124.84,124.82,0.05233597]
[1743272246012,8.0139,124.83,124.82,0.05233597]
[1743272246413,0.05930904,124.84,124.82,0.05233597]
[1743272246815,8.07290904,124.84,124.82,0.05233597]
[1743272247014,0.05930904,124.84,124.82,0.05233597]
[1743272247219,8.07280904,124.84,124.82,0.05233597]
[1743272247421,0.05930904,124.84,124.82,0.05233597]
[1743272247722,8.07260904,124.84,124.82,0.05233597]
[1743272248022,0.05930904,124.84,124.82,0.05233597]
[1743272248416,29.21954443,124.89,124.82,0.05233597]
[1743272248417,11.05005162,124.91,124.82,0.05233597]
[1743272248619,11.05005162,124.91,124.88,8.0105]
[1743272248821,11.05005162,124.91,124.88,41.2305]
[1743272249023,8.0088,124.91,124.88,41.2305]
[1743272249219,44.06194614,124.92,124.88,33.22]
[1743272249422,8.0089,124.91,124.88,33.22]
[1743272249619,0.05596936,124.91,124.89,0.0583469]
[1743272250125,8.0094,124.9,124.89,0.0583469]
[1743272251323,0.05596936,124.91,124.89,0.0583469]
[1743272252023,8.0094,124.9,124.89,0.0583469]
[1743272252922,8.0103,124.89,124.85,8.0122]
[1743272253125,33.2,124.91,124.82,2.162]
[1743272253317,4.1907,124.9,124.83,33.2]
[1743272253624,8.0123,124.86,124.83,41.2139]
[1743272253820,24.95684443,124.89,124.8,33.2]
[1743272254220,0.05466108,124.86,124.83,0.05873288]
[1743272254724,0.05466108,124.86,124.84,8.0132]
[1743272256122,0.05466108,124.86,124.85,8.0126]
[1743272257122,0.05466108,124.86,124.84,8.0128]
[1743272257323,0.05466108,124.86,124.83,33.25873288]
[1743272257723,0.05466108,124.86,124.85,8.0126]
[1743272258322,2.1132,124.93,124.83,33.25873288]
[1743272258528,8.009,124.91,124.84,2.1033]
[1743272258728,2.1132,124.93,124.87,8.0109]
[1743272258928,5.0316462,124.92,124.86,33.2]
[1743272259130,2.1132,124.93,124.86,33.2]
[1743272259429,8.0101,124.89,124.88,0.05579786]
[1743272259824,0.05452354,124.91,124.88,0.05579786]
[1743272261125,8.01,124.89,124.88,0.05579786]
[1743272261331,0.05452354,124.91,124.88,0.05579786]
[1743272261726,8.0099,124.9,124.88,0.05579786]
[1743272261921,0.05452354,124.91,124.88,0.05579786]
[1743272262727,0.05452354,124.91,124.89,33.18]
[1743272263028,2.013,124.97,124.89,33.18]
[1743272263228,8.0057,124.96,124.89,33.18]
[1743272263428,2.013,124.97,124.89,33.18]
[1743272263728,8.0066,124.95,124.91,8.0084]
[1743272264134,0.058007,124.94,124.92,0.06117995]
[1743272264331,8.064907,124.94,124.92,0.06117995]
[1743272264934,0.058007,124.94,124.92,0.06117995]
[1743272265735,0.058007,124.94,124.93,8.0075]
[1743272267227,0.058007,124.94,124.92,41.24907995]
[1743272269538,0.058007,124.94,124.92,0.06117995]
[1743272271035,8.0075,124.93,124.92,0.06117995]
[1743272271234,0.058007,124.94,124.92,0.06117995]
[1743272271640,0.058007,124.94,124.92,33.22117995]
[1743272272739,0.058007,124.94,124.93,8.0075]
[1743272273641,0.058007,124.94,124.92,41.22897995]
[1743272273939,0.058007,124.94,124.92,33.22117995]
[1743272275740,0.058007,124.94,124.92,41.22897995]
[1743272276548,8.064907,124.94,124.92,33.22117995]
[1743272276743,0.058007,124.94,124.92,33.22117995]
[1743272277646,0.058007,124.94,124.93,8.0075]
[1743272280041,8.0045,124.98,124.95,8.006]
[1743272280246,264.18,125.0,124.92,33.16]
[1743272280445,264.18,125.0,124.93,4.028]
[1743272280649,8.0048,124.98,124.95,8.0059]
[1743272280846,8.0048,124.98,124.95,41.1459]
[1743272281151,264.18,125.0,124.95,33.14]
[1743272281346,0.05590934,124.98,124.96,8.005]
[1743272281745,0.05590934,124.98,124.95,33.20052044]
[1743272284050,0.05590934,124.98,124.96,8.0056]
[1743272284759,8.06050934,124.98,124.95,41.20622044]
[1743272284961,0.05590934,124.98,124.95,33.20052044]
[1743272286750,33.12,124.97,124.88,4.028]
[1743272286958,24.95684443,124.95,124.88,33.12]
[1743272287156,24.95684443,124.95,124.85,33.12]
[1743272287357,8.0091,124.91,124.88,8.0106]
[1743272288058,8.06003335,124.91,124.88,8.06210329]
[1743272288756,0.05093335,124.91,124.88,0.05150329]
[1743272289357,8.01,124.89,124.88,0.05150329]
[1743272291063,12.0946,124.9,124.88,0.05150329]
[1743272291261,0.05093335,124.91,124.88,0.05150329]
[1743272291655,8.01,124.89,124.88,0.05150329]
[1743272291860,33.17093335,124.91,124.81,1.39647823]
[1743272292058,24.95684443,124.89,124.82,33.12]
[1743272292261,8.013,124.85,124.82,41.1344]
[1743272292664,24.95684443,124.89,124.8,4.1985]
[1743272292863,35.1776,124.88,124.8,4.1985]
[1743272293157,0.05683285,124.86,124.83,0.05644173]
[1743272293763,8.0131,124.85,124.83,0.05644173]
[1743272294059,0.05683285,124.86,124.83,0.05644173]
[1743272294263,0.05683285,124.86,124.83,8.06994173]
[1743272294562,0.05683285,124.86,124.83,0.05644173]
[1743272294757,8.06883285,124.86,124.83,2.08394173]
[1743272294957,0.05683285,124.86,124.83,2.08394173]
[1743272295362,0.05683285,124.86,124.83,10.09764173]
[1743272295562,0.05683285,124.86,124.83,2.08394173]
[1743272296265,0.05683285,124.86,124.83,0.05644173]
[1743272296663,8.06913285,124.86,124.83,0.05644173]
[1743272296860,0.05683285,124.86,124.83,0.05644173]
[1743272298662,8.06903285,124.86,124.83,0.05644173]
[1743272298870,0.05683285,124.86,124.83,0.05644173]
[1743272299165,8.0126,124.85,124.83,0.05644173]
[1743272299369,0.05683285,124.86,124.83,0.05644173]
[1743272299767,8.06933285,124.86,124.83,0.05644173]
[1743272300363,0.05683285,124.86,124.83,0.05644173]
[1743272301367,8.0132,124.84,124.83,0.05644173]
[1743272302867,29.31537728,124.86,124.78,33.1]
[1743272303062,29.25854443,124.86,124.77,33.1]
[1743272303266,29.25854443,124.86,124.77,41.1175]
[1743272303467,8.0161,124.8,124.77,41.1175]
[1743272303667,33.1,124.84,124.78,8.0167]
[1743272303863,8.0141,124.83,124.77,33.1]
[1743272304064,0.0557824,124.82,124.8,0.05186722]
[1743272304268,33.1,124.88,124.81,33.1]
[1743272304466,0.05596476,124.82,124.81,33.1]
[1743272304667,33.1,124.88,124.81,33.1]
[1743272304869,0.05250287,124.83,124.8,33.1515481]
[1743272305063,8.0143,124.83,124.8,33.1]
[1743272305262,8.07250435,124.83,124.8,33.15058358]
[1743272305665,8.0146,124.82,124.8,33.15058358]
[1743272305871,0.05820435,124.83,124.8,33.15058358]
[1743272306470,8.0145,124.82,124.8,33.15058358]
[1743272306676,0.05820435,124.83,124.8,33.15058358]
[1743272307172,8.015,124.82,124.8,33.15058358]
[1743272309175,8.07210435,124.83,124.8,41.16638358]
[1743272309574,0.05820435,124.83,124.8,33.15058358]
[1743272309973,8.0147,124.82,124.8,33.15058358]
[1743272310174,0.05820435,124.83,124.8,33.15058358]
[1743272310676,8.0152,124.81,124.8,33.15058358]
[1743272312176,8.0148,124.82,124.8,33.15058358]
[1743272312378,0.05820435,124.83,124.8,33.15058358]
[1743272312776,8.015,124.82,124.8,33.15058358]
[1743272313875,8.0152,124.81,124.8,33.15058358]
[1743272314478,0.05820435,124.83,124.8,33.15058358]
[1743272314873,8.011,124.88,124.8,33.15058358]
[1743272315179,264.08,124.9,124.81,2.0955]
[1743272315474,8.0117,124.87,124.84,8.0129]
[1743272315677,8.0117,124.87,124.84,41.1129]
[1743272316079,8.06516955,124.87,124.84,41.1723307]
[1743272317078,0.05346955,124.87,124.84,33.1594307]
[1743272317779,0.05346955,124.87,124.85,8.0123]
[1743272318175,0.05346955,124.87,124.86,8.012]
[1743272318382,1.9981,124.96,124.87,15.59432733]
[1743272318575,1.9981,124.96,124.88,35.0695]
[1743272318782,308.30194614,124.97,124.92,8.0077]
[1743272318783,8.0065,124.95,124.92,8.0077]
[1743272319081,8.0065,124.95,124.92,41.0877]
[1743272319480,8.0068,124.94,124.92,33.13891717]
[1743272319681,0.05727089,124.95,124.92,33.13891717]
[1743272320682,0.05727089,124.95,124.92,0.05891717]
[1743272320880,8.0075,124.93,124.92,0.05891717]
[1743272322185,8.0095,124.9,124.88,33.08]
[1743272322385,35.178,124.94,124.88,33.08]